Cogmind - Beta 12 @@@ ROGUE MODE // 2023.12.01 @ 23:06:30 Player: Sneff Result: Destroyed by G-47 Trooper with Particle Gun Performance ------------- Evolutions (0) 0 Regions Visited (1) 200 Robots Destroyed (12) 60 Value Destroyed (205) 205 Prototype IDs (0) 0 Alien Tech Used (0) 0 Bonus (0) 0 TOTAL SCORE: 465 Bonus ------- None Cogmind --------- Core Integrity 0/250 Matter 233/300 Energy 76/100 System Corruption 0% Temperature Warm (131) Movement Core (50) Location -10/Materials Parts ------- > --- POWER (1) -------- (None) > --- PROPULSION (2) --- (None) > --- UTILITY (2) ------ (None) > --- WEAPON (2) ------- Small Laser > --- INVENTORY (5) ---- Mining Laser Peak State ------------ > --- POWER ------------ Light Ion Engine > --- PROPULSION ------- Aluminum Leg Aluminum Leg > --- UTILITY ---------- Improved Terrain Scanner Seismic Detector > --- WEAPON ----------- Assault Rifle Light Assault Rifle > --- INVENTORY -------- Mining Laser [Rating: 9] Favorites ----------- Power Light Ion Engine Engine Light Ion Engine Propulsion Aluminum Leg Leg Aluminum Leg Utility Improved Terrain Scanner Device Improved Terrain Scanner Weapon Assault Rifle Energy Gun Small Laser Ballistic Gun Assault Rifle Launcher Grenade Launcher Special Weapon Mining Laser Build | -11 -10 ------- Run | Jun Mat Slots Evolved . | . . Power . | . . Propulsion . | . . Utility . | . . Weapon . | . . Parts Attached 12 | 8 4 Power 1 | 1 . Engine 1 | 1 . Core . | . . Reactor . | . . Propulsion 2 | 2 . Treads . | . . Leg 2 | 2 . Wheel . | . . Hover . | . . Flight . | . . Utility 2 | 2 . Device 2 | 2 . Storage . | . . Processor . | . . Hackware . | . . Protection . | . . Artifact . | . . Weapon 7 | 3 4 Energy Gun 1 | . 1 Energy Cannon . | . . Ballistic Gun 4 | 2 2 Ballistic Cannon . | . . Launcher 1 | . 1 Special Weapon 1 | 1 . Impact Weapon . | . . Slashing Weapon . | . . Piercing Weapon . | . . Special Melee Weapon . | . . Unidentified Prototypes . | . . Parts Lost 8 | . 8 Power 1 | . 1 Propulsion 2 | . 2 Utility 2 | . 2 Weapon 3 | . 3 Highest Loss Streak 8 | . 8 To Critical Strikes . | . . Average Slot Usage (%) 97 | . 97 Engine 13 | . 13 Leg 26 | . 26 Device 27 | . 27 Ballistic Gun 27 | . 27 Naked Turns . | . . Heaviest Build 8 | 8 8 Greatest Support 20 | 20 20 Greatest Overweight (x) . | . . Average Overweight (x) . | . . Largest Inventory Capacity 5 | 5 5 Average Capacity 5 | 5 5 Most Carried 3 | 2 3 Average Carried 1 | . 2 Final Capacity 5 | 5 5 Final Carried 1 | 1 1 Class Distribution -------------------- 100% | Mutant Dominant Class ---------------- Mutant | -10/Materials Resources | -11 -10 ----------- Run | Jun Mat Matter Collected 406 | 336 70 Remotely . | . . Salvage Created 307 | 148 159 Parts 32 | 17 15 Haulers Intercepted . | . . Recyclers Shooed . | . . Parts Field Recycled . | . . Retrieved Matter . | . . Parts Self-Destructed . | . . Prevented . | . . Kills | -11 -10 ------- Run | Jun Mat Combat Hostiles Destroyed 5 | 1 4 Guns 4 | 1 3 AOE 1 | . 1 Classes Destroyed 4 | 3 1 Worker 2 | 1 1 Builder 1 | . 1 Tunneler 4 | 4 . Grunt 5 | 1 4 Best Kill Streak 4 | 4 3 Combat Bots Only 2 | 1 2 Max Kills in Single Turn 2 | 1 2 Gunslinging . | . . Exploded 1 | . 1 Melee . | . . Uniques/NPCs Destroyed . | . . Combat | -11 -10 -------- Run | Jun Mat Damage Taken 832 | 35 797 Core 253 | 11 242 Absorbed by Shields . | . . Core Remaining (%) 95 | 95 . Volleys Fired 50 | 20 30 Largest 2 | 2 2 Hottest 100 | 100 60 Shots Fired 93 | 34 59 Gun 84 | 28 56 Cannon . | . . Launcher 3 | . 3 Special 6 | 6 . Kinetic 83 | 28 55 Thermal 7 | 6 1 Explosive 3 | . 3 Electromagnetic . | . . Robot Hit Streak 10 | 9 10 Robot Miss Streak 3 | 1 3 Penetration Max . | . . Secondary Targets . | . . Shots Hit Robots 53 | 19 34 Core Hits 21 | 8 13 Critical Kills . | . . Critical Parts Destroyed . | . . Critical Strikes . | . . Melee Attacks . | . . Impact . | . . Slashing . | . . Piercing . | . . Sneak Attacks . | . . Combat Hostiles . | . . Follow-up Attacks . | . . Damage Inflicted 682 | 208 474 Guns 514 | 208 306 Cannons . | . . Explosions 168 | . 168 Melee . | . . Ramming . | . . Kinetic 502 | 208 294 Thermal 12 | . 12 Explosive 168 | . 168 Electromagnetic . | . . Impact . | . . Slashing . | . . Piercing . | . . Highest Corruption . | . . Average Corruption . | . . Corruption Purged . | . . Corruption Blocked . | . . Overload Shots . | . . Overflow Damage 3 | . 3 Projectiles . | . . Explosions 3 | . 3 Melee . | . . Knockbacks . | . . Impact . | . . Kinetic . | . . Secondary . | . . Self-Inflicted Damage 39 | . 39 Shots 3 | . 3 Rammed . | . . Targets Rammed . | . . Kicked . | . . Crushed . | . . Highest Temperature 125 | 64 125 Average Temperature 37 | 30 43 Received Heat Transfer 444 | 18 426 Siege Activations . | . . Robots Corrupted . | . . Combat Hostiles . | . . Parts Fried . | . . Impact Corruptions . | . . Robots Melted . | . . Combat Hostiles . | . . Parts Melted . | . . Heat Transferred 25 | . 25 Parts Sabotaged . | . . Parts Stolen . | . . Parts Stripped . | . . Power Chain Reactions . | . . Missiles Intercepted . | . . Alert | -11 -10 ------- Run | Jun Mat Peak Influence 173 | 45 173 Initial 29 | . 29 Average 43 | 21 59 Maximum Alert Level . | . . Low Security (%) 100 | 100 100 Level 1 . | . . Level 2 . | . . Level 3 . | . . Level 4 . | . . Level 5 . | . . High Security . | . . Max Security . | . . Squads Dispatched 3 | . 3 Investigation 2 | . 2 Extermination . | . . Reinforcement 1 | . 1 Assault . | . . Garrison . | . . Intercept . | . . Searches Triggered . | . . Construction Impeded . | . . Haulers Reinforced . | . . Active Scanning Responses . | . . Cargo Convoy Interrupts . | . . Stealth | -11 -10 --------- Run | Jun Mat Distress Signals 1 | . 1 Communications Jammed . | . . Distress Signals . | . . Times Spotted 18 | 1 17 Peak Tracking Total 11 | 1 11 Tactical Retreats . | . . Traps | -11 -10 ------- Run | Jun Mat Traps Triggered 1 | . 1 Indirectly . | . . Trap Hack Attempts . | . . Triggered . | . . Disarmed . | . . Reprogrammed . | . . Reused . | . . Traps Extracted . | . . Installed . | . . Triggered . | . . Machines | -11 -10 ---------- Run | Jun Mat Machines Disabled . | . . Max in Single Turn . | . . Machines Repaired . | . . Machines Sabotaged . | . . Overloaded Fab Kills . | . . Hacking | -11 -10 --------- Run | Jun Mat Machines Accessed 2 | . 2 Terminals 2 | . 2 Fabricators . | . . Repair Stations . | . . Recycling Units . | . . Scanalyzers . | . . Garrison Access . | . . Total Hacks 6 | . 6 Successful 3 | . 3 Failed 3 | . 3 Catastrophic . | . . Database Lockouts . | . . Manual . | . . Terminals 6 | . 6 Fabricators . | . . Repair Stations . | . . Recycling Units . | . . Scanalyzers . | . . Garrison Access . | . . Terminal Hacks 3 | . 3 Record 1 | . 1 Alert Level 1 | . 1 Zone Layout 1 | . 1 Fabricator Hacks . | . . Repair Station Hacks . | . . Recycling Unit Hacks . | . . Scanalyzer . | . . Garrison Access Hacks . | . . Unauthorized Hacks . | . . Terminals . | . . Fabricators . | . . Repair Stations . | . . Recycling Units . | . . Scanalyzers . | . . Garrison Access . | . . Data Cores Recovered . | . . Used . | . . Hacking Detections 2 | . 2 Full Trace Events 2 | . 2 Feedback Events . | . . Feedback Blocked . | . . Robot Schematics Acquired . | . . Robots Built . | . . Authchips . | . . Time . | . . Total Robot Build Rating . | . . Part Schematics Acquired . | . . Parts Built . | . . Authchips . | . . Time . | . . Total Part Build Rating . | . . Parts Repaired . | . . Time . | . . Parts Recycled . | . . Recycled Matter . | . . Retrieved Matter . | . . Retrieved Components . | . . Parts Scanalyzed . | . . Part Schematics Acquired . | . . Parts Damaged . | . . Bothacking | -11 -10 ------------ Run | Jun Mat Used RIF Installer . | . . Robots Hacked . | . . Non-combat . | . . Combat . | . . Robot Hacks Applied . | . . Relay Couplers Released . | . . Fabnet Peak Effective % . | . . Robots Rewired . | . . Allies Hacked . | . . Hacks Repelled . | . . Allies | -11 -10 -------- Run | Jun Mat Total Allies . | . . Largest Group . | . . Highest-Rated Group . | . . Highest-Rated Ally . | . . Total Orders . | . . Ally Attacks . | . . Total Damage . | . . Kills . | . . Allies Corrupted . | . . Allies Melted . | . . Intel | -11 -10 ------- Run | Jun Mat Robot Analysis Total . | . . Derelict Logs Recovered . | . . Drone Launches . | . . Drone Recoveries . | . . Exploration | -11 -10 ------------- Run | Jun Mat Turns Passed 559 | 239 320 Spaces Moved 326 | 135 191 Core 35 | 34 1 Treads . | . . Legs 291 | 101 190 Wheels . | . . Hover . | . . Flight . | . . Fastest Speed 50 | 50 50 Average Speed 112 | 102 119 Slowest Speed 120 | 120 120 Overloaded Moves . | . . Propulsion Burnouts . | . . Robots Hopped . | . . Cave-ins Triggered . | . . Exploration Rate (%) 15 | 7 23 Regions Visited 1 Branch Regions . Pre-discovered Areas . | . . Known Exits Taken . | . . Unknown Exits Taken 1 | 1 . Scrap Searched . | . . Spaces Dug 1 | 1 . Terrain Destroyed 29 | 2 27 Melee . | . . Projectile 2 | 2 . AOE 27 | . 27 Terrain Rammed . | . . Walls Destroyed . | . . Machines Disabled . | . . Actions | -11 -10 --------- Run | Jun Mat Total 422 | 193 229 Wait 23 | 22 1 Move 325 | 134 191 Hop . | . . Pick Up 10 | 8 2 Fast Attach . | . . Attach 11 | 8 3 Detach 2 | 1 1 Swap 1 | . 1 Drop . | . . Fire 50 | 20 30 Melee . | . . Ram . | . . Kick . | . . Crush . | . . Escape Stasis . | . . Rewire . | . . Trap . | . . Miscellaneous . | . . Route ------- -11/Junkyard -10/Materials (discovered 1 exit: [*Min]) History --------- Turn | Location | Event 2 | -11/Junkyard | Met Revision 17 88 | -11/Junkyard | Discovered new exit (range 8) 240 | -11/Junkyard | Entered Materials 300 | -10/Materials | Build established: Mutant 506 | -10/Materials | Discovered new exit (range 16) 549 | -10/Materials | Core integrity fell below 50% 555 | -10/Materials | Core integrity fell below 20% 560 | -10/Materials | Destroyed by G-47 Trooper with Particle Gun Last Messages --------------- 00498_ ALERT: Suspicious activity at Terminal M008. Dispatching Investigation squad. [Achievement: One Hack Too Far] 00506_ EXIT=FOUND 00508_ Triggered Alarm Trap. 00508_ An alarm sounds. 00508_ ALERT: Alarm triggered, dispatching investigation squad. 00530_ W-16 Scout sends out distress signal. 00544_ G-34 Mercenary destroyed. 00544_ U-05 Engineer destroyed. 00545_ Aluminum Leg destroyed. 00550_ Destroyed Aluminum Leg. [Achievement: Crack Shot] 00550_ G-34 Mercenary destroyed. 00551_ Grenade Launcher destroyed. 00551_ Seismic Detector destroyed. 00552_ Lgt. Ion Engine destroyed. 00553_ Imp. Terrain Scanner destroyed. 00555_ Lgt. Assault Rifle destroyed. 00560_ Assault Rifle destroyed. [Achievement: First Step to Greatness] Map ----- +----------------------------------------------------+ | | | ?????????????????????????????????????? | | ?????????????????????????????????????? | | ?????????????????????????????????????? | | ?????????????????????????????????????? | | ?????????????????????????????????????? | | ?????????????????????????????????????? | | ?????????????????????????????????????? | | ?????????????????????????????????????? | | ?????????????????????????????????????? | | ?????????????????????????????????????? | | ??????? "??????????????????????????? | | ????? ???????????? ??????????????? | | ?????? < ???????????????????????????? | | ?????? ???????????????????????????? | | ?????? ??????#????????????????????? | | ?????? ???????????????????????????? | | ??????# ???????????????????????????? | | ??????# #??####???##+###???????????? | | ??????+ ?? ?? #???????????? | | ??????# ?? g?? g ?????????????? | | #?? ??# ?? ? g ???????????????? | | ??????# #### ## ##???????????????? | | ??????# !g!* # #### ???????? | | ???"??# ! !g!%g g +????????? | | #???? # % @= !g! #???????????????? | | ??????# ##???????????????? | | ??"???# ########?#????????????? | | ???"??# ######?##???? ????#????????? | | ??????# #########??????????????????? | | ?????## # T #?Y????????????????? | | ??#?### # #"?? ???? ?????????? | | ????#"" # #??? ???? ?????????? | | ????#T # """"" # ????? ???????????? | | ?######! =#!""""" #??????? ??????????? | | ?# = + """"" #??????????????????? | | ?# % #%""""" ##????#????????????? | | ?# ## """"" #??????????????????? | | ?# ## """"" #?#????????????????? | | ?# ## """"" #?????#????????????? | | ?# ## ##?#???????????????? | | ?# ##########??????????????????? | | ?# #???????????#???????????????? | | ?# #??????#????#???????????????? | | ######## ##??????????????????????????? | | ????#??# #?#?#???????##??????????????? | | ???????# #?????#????#???#????????????? | | ???#???# #?#???#?????????????????????? | | ???????# #?#???????#?????????????????? | | ?#?????# #????#??????????????????????? | +----------------------------------------------------+ Best States ------------- Heat Dissipation 25 Energy Generation 10 Energy Capacity 125 Matter Stores 300 Matter Capacity 300 Sight Range 16 Terrain Scan Range 16 Terrain Scan Density 10 Evasion (%) 55 Item Schematics ----------------- None Robot Schematics ------------------ None Fabricated ------------ Nothing Alien Tech Used ----------------- None Achievements -------------- Crack Shot First Step to Greatness One Hack Too Far Uninvited Guest Challenges ------------ None Game ------ Seed IonicRocketCloak Manual? 0 Play Time 00:13:50 Cumulative 0.4 hours Start 2023.12.01 @ 22:53:50 End 2023.12.01 @ 23:06:30 Sessions 1 Manual Loads 0 Difficulty Rogue Special Mode None Game No. 1 Rogue 1 Adventurer 0 Explorer 0 Win Type - Total 0 Types 0/0/0/0/0/0/0/0/0 Lore% 0 Gallery% 0 Achievement% 1 Wizard Run 0 Options --------- ASCII 0 Keyboard 0 Movement Mouse Keybinds 0 Fullscreen 1 Font 18/SmallcapsGlow Map View 112x50 Tactical HUD 1 Map Filters NONE Filters NONE Steam 1 RUN: aace7924-b6be-40ec-be2c-248007da60f3